lending/lending_fUSD_20260206
["ID","MTS","AMOUNT","RATE_DAILY","PERIOD"]
[404669382,1770405276213,315.47510582,8.962e-05,2]
[404669383,1770405276245,593.68587194,8.962e-05,2]
[404669384,1770405276278,593.68587194,8.962e-05,2]
[404669385,1770405276318,593.68587194,8.962e-05,2]
[404669386,1770405276351,217.8210347,8.962e-05,2]
[404669387,1770405276374,375.86483724,8.962e-05,2]
[404669388,1770405276406,593.68587194,8.962e-05,2]
[404669389,1770405276439,593.68587194,8.962e-05,2]
[404669390,1770405276471,593.68587194,8.962e-05,2]
[404669391,1770405276507,593.68587194,8.962e-05,2]
[404669392,1770405276540,593.68587194,8.962e-05,2]
[404669393,1770405276574,593.68587194,8.962e-05,2]
[404669394,1770405276609,593.68587194,8.962e-05,2]
[404669395,1770405276643,593.68587194,8.962e-05,2]
[404669396,1770405276675,593.68587194,8.962e-05,2]
[404669397,1770405276707,593.68587194,8.962e-05,2]
[404669398,1770405276740,593.68587194,8.962e-05,2]
[404669399,1770405276776,593.68587194,8.962e-05,2]
[404669400,1770405276809,593.68587194,8.962e-05,2]
[404669401,1770405276843,593.68587194,8.962e-05,2]
[404669402,1770405276875,593.68587194,8.962e-05,2]
[404669403,1770405276908,593.68587194,8.962e-05,2]
[404669404,1770405276940,125.17121172,8.962e-05,2]
[404669405,1770405276963,468.51466022,8.962e-05,2]
[404669406,1770405276996,593.68587194,8.962e-05,2]
[404669407,1770405277031,593.68587194,8.962e-05,2]
[404669408,1770405277065,593.68587194,8.962e-05,2]
[404669409,1770405277097,593.68587194,8.962e-05,2]
[404669410,1770405277130,593.68587194,8.962e-05,2]
[404669411,1770405277163,593.68587194,8.962e-05,2]
[404669412,1770405277197,593.68587194,8.962e-05,2]
[404669413,1770405277230,593.68587194,8.962e-05,2]
[404669414,1770405277266,593.68587194,8.962e-05,2]
[404669415,1770405277299,593.68587194,8.962e-05,2]
[404669416,1770405277330,593.68587194,8.962e-05,2]
[404669417,1770405277361,593.68587194,8.962e-05,2]
[404669418,1770405277392,593.68587194,8.962e-05,2]
[404669419,1770405277422,593.68587194,8.962e-05,2]
[404669420,1770405277454,593.68587194,8.962e-05,2]
[404669421,1770405277485,593.68587194,8.962e-05,2]
[404669422,1770405277515,32.52138874,8.962e-05,2]
[404669423,1770405277538,561.1644832,8.962e-05,2]
[404669424,1770405277570,593.68587194,8.962e-05,2]
[404669425,1770405277606,593.68587194,8.962e-05,2]
[404669426,1770405277648,593.68587194,8.962e-05,2]
[404669427,1770405277681,593.68587194,8.962e-05,2]
[404669428,1770405277713,593.68587194,8.962e-05,2]
[404669429,1770405277753,593.68587194,8.962e-05,2]
[404669430,1770405277786,593.68587194,8.962e-05,2]
[404669431,1770405277819,593.68587194,8.962e-05,2]
[404669432,1770405277850,593.68587194,8.962e-05,2]
[404669433,1770405277890,593.68587194,8.962e-05,2]
[404669434,1770405277922,593.68587194,8.962e-05,2]
[404669435,1770405277953,593.68587194,8.962e-05,2]
[404669436,1770405277985,593.68587194,8.962e-05,2]
[404669437,1770405278017,593.68587194,8.962e-05,2]
[404669438,1770405278050,593.68587194,8.962e-05,2]
[404669439,1770405278084,533.5574377,8.962e-05,2]
[404669440,1770405278107,60.12843424,8.962e-05,2]
[404669441,1770405278143,593.68587194,8.962e-05,2]
[404669442,1770405278186,593.68587194,8.962e-05,2]
[404669443,1770405278225,593.68587194,8.962e-05,2]
[404669444,1770405278274,593.68587194,8.962e-05,2]
[404669445,1770405278317,593.68587194,8.962e-05,2]
[404669446,1770405278359,593.68587194,8.962e-05,2]
[404669447,1770405301207,1200.0,8.962e-05,2]
[404669448,1770405301239,152.0,8.962e-05,2]
[404669449,1770405301842,150.0,8.962e-05,2]
[404669450,1770405324270,200.0,0.0003,120]
[404669451,1770405330528,478.922499,8.918e-05,2]
[404669452,1770405344857,207.6406346,0.00035616,120]
[404669453,1770405544741,500.0,8.862e-05,2]
[404669454,1770405544778,351.33799972,8.862e-05,2]
[404669455,1770405545089,222.55219843,8.862e-05,2]
[404669456,1770405545217,427.48642632,8.862e-05,2]
[404669457,1770405545462,500.0,8.862e-05,2]
[404669458,1770405548116,172.68852775,8.862e-05,2]
[404669459,1770405548153,500.0,8.862e-05,2]
[404669460,1770405548195,500.0,8.862e-05,2]
[404669461,1770405548230,500.0,8.862e-05,2]
[404669462,1770405548264,500.0,8.862e-05,2]
[404669463,1770405548298,500.0,8.862e-05,2]
[404669464,1770405548335,500.0,8.862e-05,2]
[404669465,1770405548369,500.0,8.862e-05,2]
[404669466,1770405548419,500.0,8.862e-05,2]
[404669467,1770405548455,500.0,8.862e-05,2]
[404669468,1770405548490,500.0,8.862e-05,2]
[404669469,1770405548527,500.0,8.862e-05,2]
[404669470,1770405548565,500.0,8.862e-05,2]
[404669471,1770405548606,500.0,8.862e-05,2]
[404669472,1770405548643,500.0,8.862e-05,2]
[404669473,1770405548679,500.0,8.862e-05,2]
[404669474,1770405548714,325.94484778,8.862e-05,2]
[404669475,1770405548739,174.05515222,8.862e-05,2]
[404669476,1770405548773,500.0,8.862e-05,2]
[404669477,1770405548810,500.0,8.862e-05,2]
[404669478,1770405548846,500.0,8.862e-05,2]
[404669479,1770405548882,500.0,8.862e-05,2]
[404669480,1770405548917,500.0,8.862e-05,2]
[404669481,1770405548951,500.0,8.862e-05,2]
[404669482,1770405548997,500.0,8.862e-05,2]
[404669483,1770405549033,500.0,8.862e-05,2]
[404669484,1770405549074,500.0,8.862e-05,2]
[404669485,1770405549142,500.0,8.862e-05,2]
[404669486,1770405549179,500.0,8.862e-05,2]
[404669487,1770405549215,500.0,8.862e-05,2]
[404669488,1770405549249,500.0,8.862e-05,2]
[404669489,1770405549285,500.0,8.862e-05,2]
[404669490,1770405549348,500.0,8.862e-05,2]
[404669491,1770405549396,500.0,8.862e-05,2]
[404669492,1770405549434,500.0,8.862e-05,2]
[404669493,1770405549503,500.0,8.862e-05,2]
[404669494,1770405549547,500.0,8.862e-05,2]
[404669495,1770405549762,325.95484778,8.862e-05,2]
[404669496,1770405549788,174.04515222,8.862e-05,2]
[404669497,1770405549821,500.0,8.862e-05,2]
[404669498,1770405549904,500.0,8.862e-05,2]
[404669499,1770405549974,500.0,8.862e-05,2]
[404669500,1770405550030,500.0,8.862e-05,2]
[404669501,1770405551705,-2500.0,8.863e-05,2]
[404669502,1770405553054,-676.59,8.863e-05,2]
[404669503,1770405557230,-5000.01,8.863e-05,2]
[404669504,1770405557438,-5000.01,8.863e-05,2]
[404669505,1770405557614,-5000.01,8.863e-05,2]
[404669506,1770405561427,151.0,8.86e-05,2]
[404669507,1770405561907,151.0,8.86e-05,2]
[404669508,1770405562400,151.0,8.86e-05,2]
[404669509,1770405585522,497.807628,8.818e-05,2]
[404669510,1770405601185,300.0,8.862e-05,2]
[404669511,1770405601237,1200.0,8.862e-05,2]
[404669512,1770405601325,300.0,8.862e-05,2]
[404669513,1770405604616,223.0,8.863e-05,2]
[404669514,1770405633170,500.0,8.836e-05,2]
[404669515,1770405633688,150.0,8.836e-05,2]
[404669516,1770405661233,300.0,8.862e-05,2]
[404669517,1770405661769,150.0,8.862e-05,2]
[404669518,1770405666106,245.93659981,8.862e-05,2]
[404669519,1770405679666,500.0,8.862e-05,2]
[404669520,1770405679719,500.0,8.862e-05,2]
[404669521,1770405679758,500.0,8.862e-05,2]
[404669522,1770405679793,500.0,8.862e-05,2]
[404669523,1770405679831,500.0,8.862e-05,2]
[404669524,1770405679877,500.0,8.862e-05,2]
[404669525,1770405679913,302.52324813,8.862e-05,2]
[404669526,1770405679947,500.0,8.862e-05,2]
[404669527,1770405679989,500.0,8.862e-05,2]
[404669528,1770405680023,500.0,8.862e-05,2]
[404669529,1770405680060,500.0,8.862e-05,2]
[404669530,1770405680093,500.0,8.862e-05,2]
[404669531,1770405680136,330.74252406,8.862e-05,2]
[404669532,1770405680161,169.25747594,8.862e-05,2]
[404669533,1770405680199,500.0,8.862e-05,2]
[404669534,1770405680242,500.0,8.862e-05,2]
[404669535,1770405680279,500.0,8.862e-05,2]
[404669536,1770405680315,500.0,8.862e-05,2]
[404669537,1770405680348,500.0,8.862e-05,2]
[404669538,1770405680382,500.0,8.862e-05,2]
[404669539,1770405680416,500.0,8.862e-05,2]
[404669540,1770405680450,500.0,8.862e-05,2]
[404669541,1770405680484,500.0,8.862e-05,2]
[404669542,1770405680521,500.0,8.862e-05,2]
[404669543,1770405680554,500.0,8.862e-05,2]
[404669544,1770405680586,500.0,8.862e-05,2]
[404669545,1770405680618,500.0,8.862e-05,2]
[404669546,1770405680652,500.0,8.862e-05,2]
[404669547,1770405680692,500.0,8.862e-05,2]
[404669548,1770405691008,600.0,0.00035589,120]
[404669549,1770405693294,2330.75252406,8.686e-05,2]
[404669550,1770405693319,676.52247594,8.686e-05,2]
[404669551,1770405693352,250.029,8.686e-05,2]
[404669552,1770405855384,500.0,8.549e-05,2]
[404669553,1770405932970,70245.65769133,0.00021,120]
[404669556,1770405960287,1102.9312535,8e-05,2]
[404669557,1770405971670,8429.66032818,0.0003013,120]
[404669558,1770405980513,10772.81221683,0.000295,120]
[404669559,1770405996203,2500.0,8.763e-05,2]
[404669560,1770406022683,200.0,8.568e-05,2]
[404669561,1770406025838,4830.86,8.568e-05,2]
[404669565,1770406057023,4210.16749223,0.0003286,120]
[404669566,1770406058118,3860.1258377,0.00035,120]
[404669567,1770406084977,15809.26116661,0.000315,120]
[404669573,1770406106289,59082.2179494,0.00032,120]
[404669576,1770406116986,5000.01,8.697e-05,2]
[404669577,1770406117009,5000.01,8.697e-05,2]
[404669578,1770406117032,5000.01,8.697e-05,2]
[404669579,1770406117054,5000.01,8.697e-05,2]
[404669580,1770406117078,5000.01,8.697e-05,2]
[404669581,1770406117100,5000.01,8.697e-05,2]
[404669582,1770406117123,5000.01,8.697e-05,2]
[404669583,1770406117146,5000.01,8.697e-05,2]
[404669584,1770406117169,5000.01,8.697e-05,2]
[404669585,1770406117191,5000.01,8.697e-05,2]
[404669586,1770406117216,866.2187465,8.697e-05,2]
[404669587,1770406117241,10000.01,8.697e-05,2]
[404669588,1770406117265,10000.01,8.697e-05,2]
[404669589,1770406117290,10000.01,8.697e-05,2]
[404669590,1770406117313,10000.01,8.697e-05,2]
[404669591,1770406117337,10000.01,8.697e-05,2]
[404669592,1770406117361,10000.01,8.697e-05,2]
[404669593,1770406117385,10000.01,8.697e-05,2]
[404669594,1770406117408,10000.01,8.697e-05,2]
[404669596,1770406125219,-5000.01,8.697e-05,2]
[404669597,1770406125352,-5000.01,8.697e-05,2]
[404669598,1770406125714,-5000.01,8.697e-05,2]
[404669599,1770406125850,-5000.01,8.697e-05,2]
[404669600,1770406125960,-5000.01,8.697e-05,2]
[404669601,1770406126104,-5000.01,8.697e-05,2]
[404669602,1770406126247,-5000.01,8.697e-05,2]
[404669603,1770406126355,-5000.01,8.697e-05,2]
[404669604,1770406126499,-5000.01,8.697e-05,2]
[404669605,1770406126635,-5000.01,8.697e-05,2]
[404669608,1770406136270,-5000.01,8.697e-05,2]
[404669609,1770406136609,-5000.01,8.697e-05,2]
[404669610,1770406136709,-5000.01,8.697e-05,2]
[404669611,1770406136810,-5000.01,8.697e-05,2]
[404669612,1770406142351,-300.0,8.696e-05,2]
[404669613,1770406142389,-4400.01,8.697e-05,2]
[404669614,1770406142459,-5000.01,8.697e-05,2]
[404669615,1770406142589,-5000.01,8.697e-05,2]
[404669616,1770406142726,-5000.01,8.697e-05,2]
[404669617,1770406143374,6166.879131,8.653e-05,2]
[404669618,1770406168105,-4606.98258328,8.697e-05,2]
[404669619,1770406201080,500.0,8.142e-05,2]
[404669620,1770406208054,3333.130869,7.945e-05,2]
[404669621,1770406208078,2098.295814,7.945e-05,2]
[404669622,1770406226579,-500.0,8.669e-05,2]
[404669623,1770406226608,-150.0,8.669e-05,2]
[404669636,1770406231638,-300.0,8.696e-05,2]
[404669637,1770406231648,-300.0,8.696e-05,2]
[404669638,1770406231657,-795.6,8.696e-05,2]
[404669639,1770406231746,-404.4,8.696e-05,2]
[404669640,1770406231756,-300.0,8.696e-05,2]
[404669641,1770406231765,-150.0,8.696e-05,2]
[404669642,1770406231776,-222.0,8.696e-05,2]
[404669643,1770406231786,-65716.67164918,8.697e-05,2]
[404669644,1770406231800,-37433.2665525,8.697e-05,2]
[404669645,1770406231811,-33652.1938535,8.697e-05,2]
[404669649,1770406237659,-3138324.30661504,8.697e-05,2]
[404669650,1770406237669,-267.59807108,8.697e-05,2]
[404669651,1770406237678,-3190.11042138,8.697e-05,2]
[404669652,1770406237688,-1154.41270684,8.697e-05,2]
[404669653,1770406237697,-1809.89957862,8.697e-05,2]
[404669654,1770406237707,-3247.95396387,8.697e-05,2]
[404669655,1770406237716,-1745.38156434,8.697e-05,2]
[404669656,1770406237726,-251.85,8.7e-05,2]
[404669657,1770406237735,-629.40616332,8.724e-05,2]
[404669658,1770406237744,-2500.0,8.763e-05,2]
[404669659,1770406237753,-992422.43529405,8.763e-05,2]
[404669660,1770406237769,-15797.10509814,8.763e-05,2]
[404669661,1770406237780,-69945.0,8.763e-05,2]
[404669666,1770406239687,577.94638869,8.597e-05,2]
[404669667,1770406239843,-77106.84540781,8.763e-05,2]
[404669668,1770406239853,-1142.77,8.771e-05,2]
[404669669,1770406239864,-250.0,8.784e-05,2]
[404669670,1770406239874,-13440.81,8.797e-05,2]
[404669671,1770406239884,-250.0,8.811e-05,2]
[404669672,1770406239894,-738.0,8.849e-05,2]
[404669673,1770406239904,-17412.10570975,8.853e-05,2]
[404669674,1770406239914,-1000.0,8.861e-05,2]
[404669675,1770406239923,-1000.0,8.862e-05,2]
[404669676,1770406239933,-155.7865389,8.862e-05,2]
[404669677,1770406239943,-500.0,8.862e-05,2]
[404669678,1770406239952,-499.24049842,8.862e-05,2]
[404669679,1770406239963,-500.0,8.862e-05,2]
[404669680,1770406239972,-500.0,8.862e-05,2]
[404669681,1770406239981,-500.0,8.862e-05,2]
[404669682,1770406239991,-500.0,8.862e-05,2]
[404669683,1770406240000,-500.0,8.862e-05,2]
[404669684,1770406240010,-500.0,8.862e-05,2]
[404669685,1770406240019,-500.0,8.862e-05,2]
[404669686,1770406240029,-500.0,8.862e-05,2]
[404669687,1770406240038,-500.0,8.862e-05,2]
[404669688,1770406240052,-500.0,8.862e-05,2]
[404669689,1770406240062,-500.0,8.862e-05,2]
[404669690,1770406240073,-500.0,8.862e-05,2]
[404669691,1770406240082,-500.0,8.862e-05,2]
[404669692,1770406240091,-500.0,8.862e-05,2]
[404669693,1770406240101,-500.0,8.862e-05,2]
[404669694,1770406240111,-500.0,8.862e-05,2]
[404669695,1770406240120,-500.0,8.862e-05,2]
[404669696,1770406240130,-500.0,8.862e-05,2]
[404669697,1770406240139,-500.0,8.862e-05,2]
[404669698,1770406240148,-500.0,8.862e-05,2]
[404669699,1770406240158,-500.0,8.862e-05,2]
[404669700,1770406240167,-500.0,8.862e-05,2]
[404669701,1770406240176,-500.0,8.862e-05,2]
[404669702,1770406240186,-500.0,8.862e-05,2]
[404669703,1770406240196,-500.0,8.862e-05,2]
[404669704,1770406240206,-500.0,8.862e-05,2]
[404669705,1770406240216,-500.0,8.862e-05,2]
[404669706,1770406240226,-500.0,8.862e-05,2]
[404669707,1770406240235,-500.0,8.862e-05,2]
[404669708,1770406240249,-500.0,8.862e-05,2]
[404669709,1770406240258,-500.0,8.862e-05,2]
[404669710,1770406240269,-500.0,8.862e-05,2]
[404669711,1770406240279,-500.0,8.862e-05,2]
[404669712,1770406240288,-500.0,8.862e-05,2]
[404669713,1770406240297,-167.17972782,8.862e-05,2]
[404669714,1770406240307,-312.47791678,8.862e-05,2]
[404669715,1770406240317,-1000.0,8.885e-05,2]
[404669716,1770406240327,-9999.99,8.891e-05,2]
[404669717,1770406240338,-150.99,8.891e-05,2]
[404669718,1770406240347,-150.99,8.891e-05,2]
[404669719,1770406240356,-1183.0,8.891e-05,2]
[404669720,1770406240366,-427.71,8.891e-05,2]
[404669721,1770406240375,-9999.99,8.891e-05,2]
[404669722,1770406240385,-9999.99,8.891e-05,2]
[404669723,1770406240395,-500.0,8.963e-05,2]
[404669724,1770406240404,-9999.99,8.963e-05,2]
[404669725,1770406240414,-1621.47,8.963e-05,2]
[404669726,1770406240423,-23418.35,8.963e-05,2]
[404669727,1770406240435,-7124.74,8.963e-05,2]
[404669728,1770406240445,-310.94,8.963e-05,2]
[404669729,1770406240455,-1470.95,8.963e-05,2]
[404669730,1770406240464,-9999.99,8.963e-05,2]
[404669731,1770406240474,-5491.36,8.963e-05,2]
[404669732,1770406240483,-999.99,8.963e-05,2]
[404669733,1770406240494,-8492.45639557,9e-05,2]
[404669734,1770406240503,-3634.47,9e-05,2]
[404669735,1770406240513,-349.08,9e-05,2]
[404669736,1770406240523,-1539.94,9e-05,2]
[404669737,1770406240532,-14015.2,9e-05,2]
[404669738,1770406240542,-299.99,9e-05,2]
[404669739,1770406240551,-251721.14,9e-05,2]
[404669740,1770406240561,-500.0,9e-05,2]
[404669741,1770406240572,-27900.7841,9.063e-05,2]
[404669742,1770406240581,-7003.8567,9.064e-05,2]
[404669743,1770406240591,-206.89,9.261e-05,2]
[404669744,1770406240600,-500.0,9.274e-05,2]
[404669745,1770406240610,-500.0,9.548e-05,2]
[404669746,1770406240619,-1680.0,9.565e-05,2]
[404669747,1770406240632,-259.0,9.565e-05,2]
[404669748,1770406240642,-255.0,9.565e-05,2]
[404669749,1770406240651,-300.0,9.566e-05,2]
[404669750,1770406240661,-250.0,9.648e-05,2]
[404669751,1770406240671,-300.0,9.648e-05,2]
[404669752,1770406240680,-193.49422272,9.648e-05,2]
[404669753,1770406240690,-150.0,9.728e-05,2]
[404669754,1770406240699,-1260.0,9.728e-05,2]
[404669755,1770406240709,-150.0,9.728e-05,2]
[404669756,1770406240718,-150.0,9.728e-05,2]
[404669757,1770406240727,-500.0,9.728e-05,2]
[404669758,1770406240736,-150.0,9.728e-05,2]
[404669759,1770406240746,-500.0,9.728e-05,2]
[404669760,1770406240755,-166.31971927,9.728e-05,2]
[404669761,1770406240764,-150.0,9.728e-05,2]
[404669762,1770406240774,-150.0,9.728e-05,2]
[404669763,1770406240783,-180.53234809,9.728e-05,2]
[404669764,1770406240797,-150.0,9.728e-05,2]
[404669765,1770406240807,-150.0,9.728e-05,2]
[404669766,1770406240816,-150.0,9.728e-05,2]
[404669767,1770406240830,-151.49755887,9.783e-05,2]
[404669768,1770406240844,-1260.0,9.783e-05,2]
[404669769,1770406240853,-500.0,9.783e-05,2]
[404669770,1770406240864,-150.0,9.783e-05,2]
[404669771,1770406240874,-500.0,9.783e-05,2]
[404669772,1770406240883,-200.0,9.783e-05,2]
[404669773,1770406240892,-150.0,9.783e-05,2]
[404669774,1770406240901,-500.0,9.822e-05,2]
[404669775,1770406240911,-150.0,9.825e-05,2]
[404669776,1770406240922,-150.0,9.825e-05,2]
[404669777,1770406241156,-1260.0,9.838e-05,2]
[404669778,1770406241166,-500.0,9.838e-05,2]
[404669779,1770406241175,-500.0,9.838e-05,2]
[404669780,1770406241184,-150.0,9.838e-05,2]
[404669781,1770406241194,-600.0,9.842e-05,2]
[404669782,1770406241203,-280.5,9.842e-05,2]
[404669783,1770406241212,-150.0,9.88e-05,2]
[404669784,1770406241221,-1260.0,9.892e-05,2]
[404669785,1770406241231,-482.54855076,9.892e-05,2]
[404669786,1770406241240,-500.0,9.892e-05,2]
[404669787,1770406241250,-150.0,9.892e-05,2]
[404669788,1770406241259,-200.0,9.935e-05,2]
[404669789,1770406241269,-5677.34844338,9.935e-05,2]
[404669790,1770406241278,-3454.61,9.943e-05,2]
[404669791,1770406241287,-1260.0,9.947e-05,2]
[404669792,1770406241297,-150.0,9.947e-05,2]
[404669793,1770406241306,-150.0,9.947e-05,2]
[404669794,1770406241315,-1000.0,9.996e-05,2]
[404669795,1770406241327,-204.2764753,0.0001,2]
[404669796,1770406241337,-151.0,0.0001,2]
[404669797,1770406241353,-151.0,0.0001,2]
[404669798,1770406241366,-1091.0,0.0001,2]
[404669799,1770406241376,-151.0,0.0001,2]
[404669800,1770406241386,-151.0,0.0001,2]
[404669801,1770406241395,-151.0,0.0001,2]
[404669802,1770406241406,-151.0,0.0001,2]
[404669803,1770406241415,-151.0,0.0001,2]
[404669804,1770406241426,-151.0,0.0001,2]
[404669805,1770406241435,-151.0,0.0001,2]
[404669806,1770406241445,-151.0,0.0001,2]
[404669807,1770406241458,-151.0,0.0001,2]
[404669808,1770406241469,-151.0,0.0001,2]
[404669809,1770406241479,-151.0,0.0001,2]
[404669810,1770406241490,-263.53,0.0001,2]
[404669811,1770406241500,-151.0,0.0001,2]
[404669812,1770406241511,-151.0,0.0001,2]
[404669813,1770406241520,-151.0,0.0001,2]
[404669814,1770406241530,-151.0,0.0001,2]
[404669815,1770406241540,-151.0,0.0001,2]
[404669816,1770406241550,-151.0,0.0001,2]
[404669817,1770406241560,-151.0,0.0001,2]
[404669818,1770406241569,-151.0,0.0001,2]
[404669819,1770406241578,-151.0,0.0001,2]
[404669820,1770406241588,-151.0,0.0001,2]
[404669821,1770406241598,-151.0,0.0001,2]
[404669822,1770406241608,-151.0,0.0001,2]
[404669823,1770406241617,-151.0,0.0001,2]
[404669824,1770406241627,-151.0,0.0001,2]
[404669825,1770406241637,-151.0,0.0001,2]
[404669826,1770406241646,-151.0,0.0001,2]
[404669827,1770406241656,-151.0,0.0001,2]
[404669828,1770406241666,-151.0,0.0001,2]
[404669829,1770406241675,-613.67515491,0.0001,2]
[404669830,1770406241685,-151.0,0.0001,2]
[404669831,1770406241696,-151.0,0.0001,2]
[404669832,1770406241705,-151.0,0.0001,2]
[404669833,1770406241719,-151.0,0.0001,2]
[404669834,1770406241728,-151.0,0.0001,2]
[404669835,1770406241738,-151.0,0.0001,2]
[404669836,1770406241748,-151.0,0.0001,2]
[404669837,1770406241758,-151.0,0.0001,2]
[404669838,1770406241768,-151.0,0.0001,2]
[404669839,1770406241788,-151.0,0.0001,2]
[404669840,1770406241809,-151.0,0.0001,2]
[404669841,1770406241827,-262.05166595,0.0001,2]
[404669842,1770406241840,-1138.16561732,0.0001,2]
[404669843,1770406241851,-1138.16561732,0.0001,2]
[404669844,1770406241863,-1260.0,0.00010002,2]
[404669845,1770406241876,-184.14671465,0.00010002,2]
[404669846,1770406241887,-1260.0,0.00010057,2]
[404669847,1770406241898,-500.0,0.00010096,2]
[404669848,1770406241908,-1260.0,0.00010112,2]
[404669849,1770406241918,-1260.0,0.00010166,2]
[404669850,1770406241930,-1260.0,0.00010221,2]
[404669851,1770406241939,-483.56,0.00010273,2]
[404669852,1770406241952,-1091.0,0.00010274,2]
[404669853,1770406241962,-1260.0,0.00010276,2]
[404669854,1770406241971,-1260.0,0.00010331,2]
[404669855,1770406241981,-500.0,0.0001037,2]
[404669856,1770406241990,-500.0,0.00010373,2]
[404669857,1770406242000,-500.0,0.00010373,2]
[404669858,1770406242009,-607.15821099,0.00010373,2]
[404669859,1770406242018,-500.0,0.00010373,2]
[404669860,1770406242027,-500.0,0.00010373,2]
[404669861,1770406242036,-500.0,0.00010373,2]
[404669862,1770406242046,-500.0,0.00010373,2]
[404669863,1770406242055,-500.0,0.00010373,2]
[404669864,1770406242064,-500.0,0.00010373,2]
[404669865,1770406242078,-500.125501,0.00010373,2]
[404669866,1770406242088,-177.82239355,0.00010373,2]
[404669867,1770406242097,-500.0,0.00010373,2]
[404669868,1770406242107,-500.0,0.00010373,2]
[404669869,1770406242117,-500.0,0.00010373,2]
[404669870,1770406242127,-166.49550057,0.00010373,2]
[404669871,1770406242137,-500.65680105,0.00010373,2]
[404669872,1770406242150,-500.0,0.00010373,2]
[404669873,1770406242160,-500.0,0.00010373,2]
[404669874,1770406242169,-500.0,0.00010373,2]
[404669875,1770406242179,-500.0,0.00010373,2]
[404669876,1770406242188,-169.77417539,0.00010373,2]
[404669877,1770406242198,-500.0,0.00010373,2]
[404669878,1770406242207,-500.0,0.00010373,2]
[404669879,1770406242217,-500.0,0.00010373,2]
[404669880,1770406242227,-500.56804526,0.00010373,2]
[404669881,1770406242237,-500.0,0.00010373,2]
[404669882,1770406242246,-166.9158046,0.00010373,2]
[404669883,1770406242256,-500.0,0.00010373,2]
[404669884,1770406242266,-500.0,0.00010373,2]
[404669885,1770406242275,-500.0,0.00010373,2]
[404669886,1770406242285,-500.0,0.00010373,2]
[404669887,1770406242294,-502.01902593,0.00010373,2]
[404669888,1770406242304,-500.0,0.00010373,2]
[404669889,1770406242313,-217.79448741,0.00010373,2]
[404669890,1770406242325,-500.0,0.00010373,2]
[404669891,1770406242341,-500.0,0.00010373,2]
[404669892,1770406242352,-500.0,0.00010373,2]
[404669893,1770406242363,-1260.0,0.00010386,2]
[404669894,1770406242372,-1260.0,0.0001044,2]
[404669895,1770406242381,-422.7,0.00010484,2]
[404669896,1770406242391,-1260.0,0.00010495,2]
[404669897,1770406242400,-2351.0,0.00010522,2]
[404669898,1770406242411,-433.0,0.00010522,2]
[404669899,1770406242421,-1091.0,0.00010548,2]
[404669900,1770406242431,-1260.0,0.0001055,2]
[404669901,1770406242441,-1260.0,0.00010605,2]
[404669902,1770406242450,-500.0,0.00010644,2]
[404669903,1770406242460,-150.0,0.00010647,2]
[404669904,1770406242470,-150.51948842,0.00010647,2]
[404669905,1770406242480,-150.0,0.00010647,2]
[404669906,1770406242489,-150.0,0.00010647,2]
[404669907,1770406242499,-150.0,0.00010647,2]
[404669908,1770406242509,-150.0,0.00010647,2]
[404669909,1770406242518,-150.0,0.00010647,2]
[404669910,1770406242528,-150.0,0.00010647,2]
[404669911,1770406242538,-150.0,0.00010647,2]
[404669912,1770406242548,-1260.0,0.0001066,2]
[404669913,1770406242558,-150.0,0.00010702,2]
[404669914,1770406242567,-150.0,0.00010702,2]
[404669915,1770406242580,-150.0,0.00010702,2]